bitfinex-derivatives/quotes_ETHF0:USTF0_20260226
["timestamp","ask_amount","ask_price","bid_price","bid_amount"]
[1772126233442,8.49226766,1995.6,1994.0,0.25073]
[1772126233642,8.49226766,1995.6,1994.1,13.689]
[1772126233847,8.49226766,1997.0,1995.5,7.8013388]
[1772126234145,8.49226766,1996.7,1995.3,13.779]
[1772126234455,8.49226766,1996.7,1995.4,40.8]
[1772126234951,8.49740965,1996.7,1995.4,0.00400924]
[1772126235747,8.49740965,1996.7,1995.4,7.867691]
[1772126238050,8.49740965,1996.7,1995.4,0.00400924]
[1772126238557,8.69228903,1997.8,1995.4,0.00400924]
[1772126238558,8.49226766,1998.0,1996.6,8.4162145]
[1772126238851,8.49226766,1998.0,1996.3,19.94922142]
[1772126239055,8.49226766,1997.8,1996.3,8.56122142]
[1772126239258,8.49226766,1997.8,1996.3,22.45822142]
[1772126239455,8.49840899,1997.8,1996.3,22.45822142]
[1772126240259,8.49840899,1997.8,1996.3,8.56122142]
[1772126240452,8.49840899,1997.8,1996.4,8.72223817]
[1772126240952,8.49840899,1997.8,1996.4,22.60423817]
[1772126241254,8.49840899,1997.8,1996.6,8.72223817]
[1772126242054,8.49840899,1997.8,1996.5,8.72223817]
[1772126243063,8.49226766,1998.7,1997.0,8.72223817]
[1772126243359,8.49226766,1998.5,1997.2,8.72223817]
[1772126243555,8.49226766,1998.5,1997.3,8.72223817]
[1772126244156,8.49619083,1998.5,1997.3,0.00511633]
[1772126244958,8.49226766,1998.3,1997.3,0.00511633]
[1772126245158,8.49226766,1998.3,1997.3,8.7273545]
[1772126245759,8.49226766,1998.3,1997.3,0.00511633]
[1772126246555,8.49226766,1998.1,1997.3,0.00511633]
[1772126247062,8.49226766,1997.9,1996.5,8.72223817]
[1772126247467,8.49226766,2000.1,1997.9,8.72223817]
[1772126247764,8.49226766,1999.6,1998.1,8.72223817]
[1772126247970,8.49226766,1999.6,1998.2,49.52223817]
[1772126248560,8.49740915,1999.6,1998.2,49.52677943]
[1772126248765,8.49226766,1999.4,1998.2,49.52677943]
[1772126248965,8.49226766,1999.4,1998.2,0.00454126]
[1772126249860,8.49226766,1999.4,1998.2,8.72677943]
[1772126251368,8.49226766,1999.2,1998.2,0.00454126]
[1772126251759,8.49226766,1999.0,1998.2,0.00454126]
[1772126252473,8.49226766,1998.8,1997.6,8.72223817]
[1772126252765,8.49226766,1998.6,1997.6,8.72223817]
[1772126253360,8.49226766,1998.6,1997.6,8.72701718]
[1772126253964,8.49226766,1998.5,1997.6,8.72701718]
[1772126254565,8.49226766,1998.4,1997.6,0.00477901]
[1772126255566,10.57601438,1998.2,1996.8,10.48151072]
[1772126256570,10.57994934,1998.2,1996.8,10.48559784]
[1772126257170,10.57601438,1998.0,1996.8,10.48559784]
[1772126257471,10.57601438,1997.8,1996.8,10.48559784]
[1772126257772,10.57601438,1997.7,1996.8,10.48559784]
[1772126257962,10.57601438,1997.6,1996.8,10.48559784]
[1772126258166,10.57601438,1997.6,1996.8,0.00408712]
[1772126258768,11.15128,1997.7,1996.2,10.48151072]
[1772126258769,10.57601438,1997.4,1996.2,10.48151072]
[1772126259273,10.57601438,1997.0,1995.5,10.48151072]
[1772126259472,10.57601438,1996.8,1995.5,10.48151072]
[1772126259774,10.57988349,1996.8,1995.5,10.48717938]
[1772126260479,11.43867236,1996.6,1995.5,10.48717938]
[1772126260676,11.43867236,1996.4,1995.5,0.00566866]
[1772126261476,11.43867236,1996.2,1995.5,0.00566866]
[1772126261875,11.43867236,1996.0,1995.5,0.00566866]
[1772126262277,11.43867236,1996.0,1995.5,0.00369058]
[1772126263082,11.43867236,1996.0,1995.0,51.79085947]
[1772126263869,11.43867236,1996.0,1995.0,10.99085947]
[1772126264069,11.43867236,1996.0,1995.0,10.99693428]
[1772126265575,11.43867236,1995.9,1995.0,10.99693428]
[1772126267081,11.43867236,1995.9,1995.0,0.00607481]
[1772126267481,11.43867236,1995.9,1995.0,10.99693428]
[1772126267776,11.43867236,1995.7,1995.0,10.99693428]
[1772126268582,22.31767236,1996.0,1995.0,11.24754428]
[1772126268775,11.43867236,1996.0,1995.0,11.24754428]
[1772126270781,11.43867236,1996.0,1995.0,24.94193428]
[1772126271480,11.43867236,1996.0,1995.0,0.00607481]
[1772126271977,11.43867236,1995.8,1995.0,0.00607481]
[1772126272782,0.25047,1996.2,1995.0,0.00607481]
[1772126272783,11.43867236,1995.6,1995.0,0.00607481]
[1772126274677,11.43867236,1995.8,1995.0,10.99693428]
[1772126275882,11.68919236,1995.8,1995.0,0.00607481]
[1772126276884,11.68919236,1995.8,1994.3,10.99085947]
[1772126277089,11.43867236,1995.6,1994.3,10.99085947]
[1772126277294,11.43867236,1995.4,1994.3,10.99085947]
[1772126277887,22.31384709,1995.4,1994.3,10.99539727]
[1772126278286,22.31384709,1995.4,1994.5,10.99085947]
[1772126278885,11.43867236,1995.3,1994.5,10.99085947]
[1772126279387,10.87517473,1995.4,1994.7,10.99085947]
[1772126279388,0.00417473,1995.4,1994.7,10.99085947]
[1772126279598,1e-08,1995.4,1994.7,10.99085947]
[1772126281387,11.43867237,1995.4,1994.5,24.93985947]
[1772126281593,11.43867237,1995.4,1994.6,10.99085947]
[1772126281986,1e-08,1995.4,1994.6,10.99085947]
[1772126287291,1e-08,1995.4,1994.7,0.25065]
[1772126287492,1e-08,1995.4,1994.8,10.99085947]
[1772126287691,11.43867236,1995.7,1994.8,10.99085947]
[1772126288097,22.26767236,1995.9,1994.8,10.99085947]
[1772126288490,11.43867236,1995.8,1994.8,10.99085947]
[1772126288695,0.00522382,1995.8,1995.0,12.88969217]
[1772126288896,11.44389618,1995.8,1994.7,10.99085947]
[1772126289095,11.43867236,1995.7,1994.7,10.99085947]
[1772126289297,11.68920236,1995.7,1994.3,10.99539727]
[1772126289799,11.68920236,1995.7,1994.3,11.24609727]
[1772126290296,11.68920236,1995.7,1994.3,10.99539727]
[1772126290297,0.25058,1995.3,1994.3,10.99539727]
[1772126290495,11.43867236,1995.7,1994.3,10.99539727]
[1772126290496,13.03945551,1995.0,1994.3,0.00036308]
[1772126290700,13.03945551,1994.8,1994.3,0.00036308]
[1772126295300,13.03945551,1994.8,1994.3,12.2984109]
[1772126296393,13.03945551,1994.8,1994.3,0.00036308]
[1772126297703,13.03945551,1994.7,1994.3,0.00036308]
[1772126297904,13.03945551,1994.6,1994.3,0.00036308]
[1772126298203,23.85645551,1994.6,1994.3,0.00036308]
[1772126298502,13.03945551,1994.5,1994.3,0.00036308]
[1772126300915,13.29013551,1994.5,1993.1,12.29804782]
[1772126301408,13.29013551,1994.5,1993.1,53.09804782]
[1772126301606,13.29013551,1994.5,1993.2,12.29804782]
[1772126301806,13.03945551,1994.3,1993.2,12.30307314]
[1772126302002,13.03945551,1994.1,1993.2,0.00502532]
[1772126302207,13.03945551,1993.9,1993.2,0.00502532]
[1772126302804,13.03945551,1993.7,1993.2,0.00502532]
[1772126303001,13.03945551,1993.5,1992.7,0.2509]
[1772126303202,13.03945551,1993.5,1992.7,12.54894782]
[1772126303402,13.03945551,1993.5,1992.7,53.34894782]
[1772126304006,13.03945551,1993.5,1992.7,53.35539508]
[1772126304607,13.03945551,1993.5,1992.8,12.29804782]
[1772126305209,13.03945551,1993.8,1992.8,12.29804782]
[1772126305413,13.03945551,1993.7,1992.8,12.29804782]
[1772126306604,13.03945551,1993.7,1992.7,0.00644726]
[1772126310621,13.03945551,1993.7,1992.7,12.30449508]
[1772126311122,10.819,1993.8,1992.9,12.29804782]
[1772126313119,10.819,1993.8,1992.7,12.30449508]
[1772126313120,13.03945551,1993.7,1992.7,12.30449508]
[1772126315320,10.819,1993.8,1992.9,13.56800421]
[1772126315519,13.85222533,1993.9,1992.9,13.56800421]
[1772126315520,13.85222533,1993.9,1993.1,13.56800421]
[1772126316515,24.65422533,1994.1,1993.1,13.56800421]
[1772126316714,13.85222533,1994.0,1993.1,13.56800421]
[1772126317520,13.85222533,1994.0,1993.0,13.56800421]
[1772126318120,13.85222533,1994.0,1993.0,15.4699859]
[1772126318823,13.85222533,1994.0,1993.0,13.56800421]
[1772126319719,13.85222533,1994.0,1992.7,1.90842895]
[1772126319720,13.85222533,1994.0,1992.7,0.00644726]
[1772126321026,13.85222533,1994.0,1992.7,14.12156058]
[1772126323027,13.85222533,1994.0,1992.7,16.02354227]
[1772126323427,13.85222533,1994.0,1992.7,14.12156058]
[1772126323628,13.85222533,1994.0,1992.9,14.11511332]
[1772126323831,13.85222533,1994.0,1993.1,14.11511332]
[1772126324329,13.76256157,1994.1,1993.1,14.11511332]
[1772126325533,7.8397257,1995.3,1993.1,14.11511332]
[1772126325534,13.76256157,1995.1,1993.8,0.25076]
[1772126325729,13.76256157,1995.1,1993.8,13.95176]
[1772126325929,13.76256157,1995.1,1994.0,14.11511332]
[1772126326331,13.76256157,1994.9,1994.0,14.11511332]
[1772126326529,13.76256157,1994.7,1994.0,14.11511332]
[1772126326732,13.76709132,1994.9,1994.0,14.11511332]
[1772126327334,10.829,1995.2,1994.0,16.26738868]
[1772126327335,24.59156157,1995.2,1994.0,16.26738868]
[1772126327635,13.76256157,1995.1,1994.0,16.26738868]
[1772126328035,13.76256157,1995.5,1994.0,16.26738868]
[1772126328536,13.76647107,1995.5,1994.0,16.26738868]
[1772126329137,13.76647107,1995.5,1994.3,14.11511332]
[1772126329330,13.76647107,1995.5,1994.4,14.11511332]
[1772126332243,13.76647107,1995.5,1994.3,0.00531043]
[1772126332536,13.76256157,1995.3,1994.3,0.00531043]
[1772126332737,13.76256157,1994.9,1993.7,14.11511332]
[1772126332942,0.25061,1995.0,1993.3,14.11511332]
[1772126332943,13.76256157,1994.7,1993.3,14.11511332]
[1772126333241,13.76256157,1994.7,1993.5,14.11511332]
[1772126333636,13.76256157,1994.5,1993.3,14.11511332]
[1772126333837,13.76256157,1994.3,1993.3,14.11890188]
[1772126334137,13.76256157,1994.3,1993.3,0.00378856]
[1772126334941,13.76256157,1994.3,1993.0,14.11511332]
[1772126335142,13.76256157,1994.1,1992.7,14.36601332]
[1772126335338,13.76256157,1993.9,1992.7,14.36601332]
[1772126336046,13.76679082,1993.9,1992.7,14.1208779]
[1772126338040,13.76679082,1993.9,1992.7,0.00576458]
[1772126338343,13.76256157,1993.7,1992.7,0.00576458]
[1772126338541,13.76256157,1993.5,1992.7,0.00576458]
[1772126338733,13.76256157,1993.5,1992.2,14.36607332]
[1772126339141,13.76256157,1993.5,1992.3,14.11511332]
[1772126339638,13.76256157,1993.5,1992.3,14.11949191]
[1772126340540,13.76256157,1993.3,1992.3,0.00437859]
[1772126340745,13.76256157,1993.1,1992.3,0.00437859]
[1772126341446,13.76256157,1993.1,1991.8,40.8]
[1772126341447,13.76256157,1993.1,1991.8,54.91511332]
[1772126341644,13.76256157,1992.9,1991.8,14.11511332]
[1772126341947,13.76256157,1992.7,1991.8,14.11511332]
[1772126342246,10.824,1992.7,1991.8,14.11511332]
[1772126342545,10.824,1992.7,1991.8,14.12007465]
[1772126343144,10.824,1992.7,1992.0,14.11511332]
[1772126344547,24.58656157,1992.7,1992.0,14.11511332]
[1772126344743,13.76256157,1992.6,1992.0,14.11511332]
[1772126345046,10.824,1992.7,1992.0,14.11511332]
[1772126347248,13.76256157,1993.5,1992.0,14.11511332]
[1772126347453,13.76256157,1993.3,1992.0,14.11511332]
[1772126348146,13.76256157,1993.1,1992.0,14.11511332]
[1772126348347,13.76256157,1992.9,1992.1,14.11511332]
[1772126348543,13.76256157,1992.7,1992.1,14.11511332]
[1772126348752,13.76256157,1992.5,1991.8,0.00496133]
[1772126349056,24.58556157,1992.4,1991.8,14.12007465]
[1772126351550,10.836,1992.3,1991.8,14.12007465]
[1772126351747,11.33959426,1993.0,1992.0,10.69904747]
[1772126351952,22.17259426,1993.0,1992.0,10.69904747]
[1772126352356,11.33959426,1992.9,1992.0,10.69904747]
[1772126352856,11.34421919,1992.9,1992.0,10.69904747]
[1772126353357,10.832,1992.8,1992.0,10.69904747]
[1772126354257,10.828,1992.8,1992.0,10.69904747]
[1772126354751,22.16459426,1993.3,1992.2,10.69904747]
[1772126354958,22.16459426,1993.3,1992.4,10.69904747]
[1772126355657,11.33959426,1993.2,1992.4,10.69904747]
[1772126356751,10.82917178,1993.3,1992.4,10.69904747]
[1772126357959,22.16876604,1993.3,1992.4,10.69904747]
[1772126358654,11.33959426,1993.2,1992.4,10.69904747]
[1772126359750,10.82917178,1993.3,1992.0,13.739]
[1772126359751,10.82917178,1993.3,1992.6,10.69904747]
[1772126359956,10.819,1993.6,1992.8,10.69904747]
[1772126360561,10.819,1993.6,1993.0,10.69904747]
[1772126360856,0.00509378,1993.6,1993.0,10.69904747]
[1772126361052,10.82,1993.9,1993.2,10.69904747]
[1772126361254,10.74370874,1993.9,1993.2,10.69904747]
[1772126362060,10.74986535,1993.9,1993.2,10.70369325]
[1772126363762,11.33959426,1993.8,1993.2,0.00464578]
[1772126363962,11.33959426,1993.8,1992.8,10.69904747]
[1772126365062,11.33959426,1993.8,1992.8,10.70316365]
[1772126365458,11.33959426,1993.8,1992.4,10.69904747]
[1772126365657,11.59037426,1993.7,1992.4,10.69904747]
[1772126366363,11.59037426,1993.7,1992.4,10.70504116]
[1772126366657,11.33959426,1993.2,1992.4,0.00599369]
[1772126366863,11.33959426,1993.0,1992.4,0.00599369]
[1772126368557,11.33959426,1993.0,1992.0,12.74900344]
[1772126369062,11.33959426,1993.0,1991.5,2.05203703]
[1772126369063,11.33959426,1992.4,1991.5,10.69904747]
[1772126369262,10.836,1992.3,1991.5,10.69904747]
[1772126369462,10.836,1992.3,1991.5,10.70374843]
[1772126369463,22.18067401,1992.3,1991.5,10.70374843]
[1772126370065,0.00507975,1992.3,1991.5,10.70374843]
[1772126370968,11.33959426,1992.8,1991.6,10.69904747]
[1772126371168,11.33959426,1992.8,1991.8,10.69904747]
[1772126371766,11.34520979,1992.8,1991.8,10.69904747]
[1772126372665,0.00561553,1992.8,1991.8,10.69904747]
[1772126372864,11.34520979,1992.8,1991.8,10.69904747]
[1772126373364,11.33959426,1994.2,1992.4,10.69904747]
[1772126373666,5.93818034,1994.7,1992.4,10.69904747]
[1772126373667,11.33959426,1994.0,1992.9,10.69904747]
[1772126374173,10.866,1994.1,1993.1,10.69904747]
[1772126374670,10.866,1994.1,1993.3,10.69904747]
[1772126374671,11.33959426,1994.0,1993.3,10.69904747]
[1772126375771,11.33959426,1994.0,1993.1,0.00635081]
[1772126377864,8.24763083,1993.8,1993.1,0.00635081]
[1772126378373,8.24763083,1993.6,1993.1,0.00635081]
[1772126378577,8.24763083,1993.6,1993.1,7.53487276]
[1772126378769,19.09863083,1993.6,1993.1,7.53487276]
[1772126379070,8.24763083,1993.5,1993.1,0.00635081]
[1772126379269,19.09963083,1993.5,1993.1,0.00635081]
[1772126379874,8.24763083,1993.5,1993.1,0.00635081]
[1772126380274,10.85,1993.4,1992.6,7.6751777]
[1772126380472,7.09071247,1993.3,1992.6,7.6751777]
[1772126381582,7.09071247,1993.3,1992.6,7.67904918]
[1772126382173,10.85,1993.4,1992.6,7.67904918]
[1772126382672,7.09071247,1993.3,1992.6,7.67904918]
[1772126383671,7.09071247,1993.3,1992.6,0.00387148]
[1772126384873,7.09071247,1993.1,1992.6,0.00387148]
[1772126385067,0.25077,1993.8,1992.6,0.00387148]
[1772126385068,7.09071247,1993.6,1992.6,7.67904918]
[1772126385280,7.09071247,1993.5,1992.6,7.67904918]
[1772126386677,7.09071247,1993.5,1992.6,0.00387148]
[1772126388082,7.09071247,1993.3,1992.6,0.00387148]
[1772126391085,6.89071247,1993.3,1992.6,0.00387148]
[1772126393389,6.89071247,1993.3,1992.6,7.67904918]
[1772126393583,7.09071247,1992.9,1991.7,7.6751777]
[1772126393788,7.09071247,1992.7,1991.7,7.6751777]
[1772126394684,7.09530734,1992.7,1991.7,7.93074884]
[1772126394885,0.00459487,1992.7,1991.9,7.6751777]
[1772126395383,17.71453356,1993.2,1992.1,9.57861055]
[1772126395590,6.87153356,1993.1,1992.1,9.57861055]
[1772126396384,6.87560994,1993.1,1992.1,9.57861055]
[1772126398889,6.26250914,1993.5,1992.5,7.6751777]
[1772126399084,6.26250914,1993.8,1992.8,7.6751777]
[1772126399490,6.26250914,1993.8,1992.6,7.6751777]
[1772126399893,6.26827017,1993.8,1992.6,7.6751777]
[1772126400493,6.14051212,1993.6,1992.4,7.6751777]
[1772126400698,6.15604449,1993.4,1992.4,7.6751777]
[1772126400898,6.15604449,1993.4,1991.9,7.6751777]
[1772126401092,6.15604449,1993.4,1992.1,7.6751777]
[1772126401494,5.98587686,1993.0,1991.8,7.6751777]
[1772126401693,6.00917104,1992.8,1991.8,7.6751777]
[1772126404594,6.00917104,1992.8,1991.7,0.00455114]
[1772126405095,10.837,1992.9,1991.7,0.00455114]
[1772126405096,5.44370311,1992.6,1991.7,0.00455114]
[1772126405691,5.44370311,1992.6,1991.7,7.67972884]
[1772126407398,5.44370311,1992.6,1991.7,0.00455114]
[1772126407596,5.16351583,1992.4,1991.5,7.6751777]
[1772126407801,5.16351583,1992.2,1991.3,7.6751777]
[1772126408698,5.16902763,1992.2,1991.3,7.6787844]
[1772126409095,5.42000763,1992.2,1991.0,7.6751777]
[1772126409301,4.86338462,1991.8,1991.0,7.6751777]
[1772126409497,4.86338462,1991.7,1991.0,7.6751777]
[1772126409702,4.86338462,1991.7,1990.8,4.75298056]
[1772126409901,4.86338462,1991.7,1990.3,4.75298056]
[1772126410202,4.86338462,1991.7,1990.3,4.75497228]
[1772126410403,4.86338462,1991.7,1990.5,4.75298056]
[1772126410701,10.827,1991.8,1990.8,4.75298056]
[1772126410900,15.27891491,1991.8,1990.8,4.75298056]
[1772126411606,4.45191491,1991.7,1990.8,4.75298056]
[1772126412103,4.25185172,1992.1,1990.8,4.75298056]
[1772126412306,4.25185172,1992.1,1991.1,4.75298056]
[1772126413804,4.25185172,1992.1,1990.6,4.75298056]
[1772126416906,4.25185172,1992.1,1990.8,4.75298056]
[1772126417106,4.25185172,1992.1,1990.8,5.00412056]
[1772126417307,4.25185172,1992.1,1991.1,4.75298056]
[1772126418715,3.53718401,1991.9,1990.8,4.75298056]
[1772126420915,3.15322964,1992.1,1991.0,4.75298056]
[1772126421711,3.40420964,1992.1,1991.0,4.75298056]
[1772126423611,3.40420964,1992.1,1990.4,2.15461285]
[1772126423612,2.89997203,1991.9,1990.5,4.75298056]
[1772126423807,5.71416592,1992.0,1990.5,4.75298056]
[1772126423808,2.79317675,1991.7,1990.5,4.75298056]
[1772126424013,2.79317675,1991.5,1990.5,4.75298056]
[1772126425114,5.24559157,1991.4,1990.5,4.75298056]
[1772126425314,2.67493952,1991.4,1990.5,4.75298056]
[1772126427820,2.31944513,1991.2,1990.5,4.75298056]
[1772126428121,2.31944513,1991.2,1990.3,4.75862547]
[1772126429112,2.20642187,1991.3,1990.3,4.75862547]
[1772126429925,2.20642187,1991.3,1990.5,4.75298056]
[1772126431024,1.99179247,1991.7,1990.5,4.75298056]
[1772126431425,1.99179247,1991.9,1990.8,4.75298056]
[1772126433922,1.65242942,1992.1,1990.8,4.75298056]
[1772126435931,1.65242942,1992.1,1991.0,3.07538606]
[1772126436134,10.7865118,1992.2,1991.1,3.07538606]
[1772126436727,10.7865118,1992.2,1991.4,3.07538606]
[1772126437432,0.0055118,1992.2,1991.4,3.07538606]
[1772126437632,0.0055118,1992.2,1991.2,0.25109]
[1772126437633,12.00189702,1992.7,1991.7,3.07538606]
[1772126438625,12.00826427,1992.7,1991.7,3.08061694]
[1772126438826,0.00636725,1992.7,1992.0,3.07538606]
[1772126439127,1.03162858,1993.1,1992.0,3.07538606]
[1772126439928,1.03592142,1993.1,1992.0,3.07538606]
[1772126441130,1.03592142,1993.1,1991.9,1.90343285]
[1772126441131,0.25089,1992.8,1991.8,2.70759481]
[1772126441331,5.52301113,1993.0,1991.7,2.71282569]
[1772126441332,0.74548324,1992.5,1991.7,2.71282569]
[1772126443023,11.29616172,1992.7,1991.7,2.71282569]
[1772126443425,10.741,1992.7,1991.7,2.71282569]
[1772126444226,0.72977206,1993.1,1992.0,2.70759481]
[1772126444736,0.48351717,1993.0,1992.0,2.70759481]
[1772126445533,0.3870832,1992.8,1992.0,2.70759481]
[1772126445733,0.3870832,1992.6,1991.8,2.70759481]
[1772126448045,0.25093,1992.5,1991.8,2.70759481]
[1772126448247,0.11519635,1992.4,1991.7,0.00523088]
[1772126449348,0.0261632,1992.2,1991.7,0.00523088]
[1772126449552,0.07611712,1992.0,1991.0,2.70759481]
[1772126450545,0.07611712,1992.0,1991.0,2.71221508]
[1772126452042,0.25098,1992.1,1991.0,2.71221508]
[1772126453044,6.17389,1992.2,1991.0,2.71221508]
[1772126453239,6.17361,1992.3,1991.0,2.71221508]
[1772126453240,5.55062994,1992.0,1991.0,2.71221508]
[1772126453441,0.25098,1992.1,1991.0,2.71221508]
[1772126458262,0.251,1991.9,1991.0,2.71221508]
[1772126459361,0.25105,1991.6,1990.8,2.70759481]
[1772126459656,0.25105,1991.6,1990.6,2.70759481]
[1772126459657,10.90505,1991.6,1990.6,2.70759481]
[1772126460455,10.6590018,1991.6,1990.6,2.71156118]
[1772126461156,0.0050018,1991.6,1990.8,2.70759481]
[1772126466669,13.4551764,1992.2,1990.8,2.70759481]
[1772126466859,2.5532064,1992.2,1991.0,2.70759481]
[1772126467059,2.5532064,1992.2,1991.2,2.70759481]
[1772126467363,10.86792,1992.7,1991.4,2.70759481]
[1772126467760,10.87367333,1992.7,1991.4,2.70759481]
[1772126470165,10.62275333,1992.7,1991.4,2.95865481]
[1772126473766,0.25092,1992.6,1991.4,2.70759481]
[1772126476362,10.62275333,1992.7,1991.4,2.70759481]
[1772126477767,0.25092,1992.6,1991.4,2.70759481]
[1772126479971,0.25094,1992.4,1991.4,2.70759481]
[1772126482177,0.25097,1992.2,1991.4,2.70759481]
[1772126482380,0.25097,1992.2,1990.8,2.19676492]
[1772126483375,5.44982402,1992.1,1990.8,2.19676492]
[1772126483581,10.577,1992.0,1990.8,2.19676492]
[1772126484480,0.251,1991.9,1990.8,2.19676492]
[1772126485681,0.25095,1992.4,1990.8,2.19676492]
[1772126485883,7.09104334,1992.3,1990.8,2.19676492]
[1772126486083,0.25097,1992.2,1990.8,2.19676492]
[1772126486284,5.8058869,1992.2,1990.8,2.19676492]
[1772126486987,0.25097,1992.2,1991.0,2.18129796]
[1772126487176,10.567,1992.3,1991.2,2.18129796]
[1772126487377,0.25092,1992.6,1991.2,2.18129796]
[1772126487583,10.565,1992.5,1991.2,2.18129796]
[1772126490777,10.565,1992.5,1991.4,2.17140981]
[1772126496690,0.00575333,1992.7,1991.6,2.15820026]
[1772126496884,0.00575333,1992.7,1991.8,2.15820026]
[1772126497084,10.54,1993.1,1991.5,1.90495871]
[1772126497085,10.54,1993.1,1992.0,2.15820026]
[1772126497283,10.54,1993.1,1992.2,2.15820026]
[1772126498087,0.00610763,1993.1,1992.2,2.16438859]
[1772126498388,10.535,1993.6,1992.4,2.15769932]
[1772126499392,10.54088275,1993.6,1992.4,2.15769932]
[1772126501483,10.54088275,1993.6,1992.6,2.15673543]
[1772126503090,0.2508,1993.5,1992.6,2.15673543]
[1772126504685,0.2508,1993.5,1992.3,2.14167444]
[1772126506388,7.10987459,1994.1,1992.7,2.13802788]
[1772126506389,0.25075,1994.0,1992.7,2.13802788]
[1772126506782,0.94185459,1994.1,1993.0,2.13802788]
[1772126507390,0.94668761,1994.1,1993.0,2.13802788]
[1772126507890,1.19741761,1994.1,1993.0,2.13802788]
[1772126508292,5.29761949,1994.0,1993.0,2.13802788]
[1772126508987,0.25075,1993.9,1993.0,2.13802788]
[1772126510593,2.15377128,1993.9,1992.6,2.13447354]
[1772126510987,0.25081,1993.5,1992.6,2.13447354]
[1772126511192,10.74481,1993.5,1992.6,2.13447354]
[1772126511590,0.25086,1993.1,1992.3,2.13447354]
[1772126513005,0.2509,1992.7,1992.0,1.8757777]
[1772126514205,0.00630494,1992.7,1992.0,1.879348]
[1772126515298,0.25092,1992.6,1992.0,1.879348]
[1772126517301,0.00630494,1992.7,1992.0,1.879348]
[1772126518309,0.25092,1992.6,1992.0,0.0035703]
[1772126519306,0.25096,1992.3,1991.1,1.77932382]
[1772126519604,0.25098,1992.1,1991.1,1.77932382]
[1772126520208,2.15400128,1992.1,1991.1,1.78398855]
[1772126520406,0.251,1991.9,1991.1,1.78398855]
[1772126520806,0.25103,1991.7,1991.1,1.76703381]
[1772126521006,10.471,1991.6,1991.1,0.00466473]
[1772126521207,10.471,1991.6,1991.1,1.77513202]
[1772126521512,0.25105,1991.5,1990.9,1.51907966]
[1772126522409,10.471,1991.6,1990.9,1.52396973]
[1772126523101,10.473,1992.0,1990.9,1.52396973]
[1772126524410,0.25093,1992.5,1990.9,1.52396973]
[1772126524411,10.47,1992.4,1990.9,1.52396973]
[1772126524613,10.47,1992.4,1991.1,1.52219594]
[1772126526412,0.00630494,1992.7,1991.4,1.51928414]
[1772126526910,0.00630494,1992.7,1991.4,1.77035414]
[1772126527103,0.00630494,1992.7,1991.4,1.51928414]
[1772126527808,0.00630494,1992.7,1990.9,10.48801007]
[1772126527809,0.00630494,1992.7,1991.7,1.51122125]
[1772126532515,0.25092,1992.6,1991.7,1.51122125]
[1772126533208,0.25094,1992.4,1991.7,0.97412125]
[1772126533414,0.25099,1992.1,1991.0,1.2416246]
[1772126533806,5.69137073,1992.3,1991.0,1.2416246]
[1772126534004,10.68093,1992.5,1991.0,1.2416246]
[1772126534208,10.68093,1992.5,1990.9,0.25602007]
[1772126534209,10.68093,1992.5,1991.3,0.25108]
[1772126534412,10.43,1992.5,1991.4,1.24159508]
[1772126534714,0.00630494,1992.7,1991.6,1.24159508]
[1772126538410,0.25092,1992.6,1991.6,1.24159508]
[1772126541211,0.00630494,1992.7,1991.6,1.24159508]
[1772126541707,0.00630494,1992.7,1991.7,1.24262753]
[1772126542111,0.25087,1993.0,1991.7,1.24262753]
[1772126543013,0.25591966,1993.0,1991.7,1.24262753]
[1772126543513,0.25091,1992.7,1991.7,1.24262753]
[1772126544619,10.62491,1992.7,1991.7,1.24262753]
[1772126545514,0.25095,1992.3,1991.7,1.24262753]
[1772126546220,0.25095,1992.3,1991.5,0.97270837]
[1772126546519,0.24729681,1992.3,1991.5,0.97270837]
[1772126547714,0.251,1991.9,1991.3,0.9685647]
[1772126549120,10.37,1992.0,1991.0,0.6989847]
[1772126549121,0.25103,1991.7,1991.0,0.6989847]
[1772126552420,10.37,1992.0,1991.0,0.6989847]
[1772126554724,10.37,1992.0,1989.8,0.70092951]
[1772126554725,1.90302128,1991.1,1989.8,0.70092951]
[1772126554927,6.17699,1991.2,1989.6,0.70092951]
[1772126554928,0.25119,1990.4,1989.6,0.70092951]
[1772126555126,10.353,1990.3,1989.6,0.70092951]
[1772126555330,16.00966974,1990.3,1989.6,0.70092951]
[1772126555529,10.353,1990.3,1989.6,0.70092951]
[1772126555729,10.35905638,1990.3,1989.6,0.70562938]
[1772126559223,0.28597199,1989.8,1988.0,0.08731838]
[1772126559427,0.28597199,1989.6,1988.8,0.54583577]
[1772126559721,0.25129,1989.7,1988.5,0.54498746]
[1772126559722,0.28661488,1989.4,1988.5,0.54498746]
[1772126560130,10.63961129,1989.5,1988.5,0.54498746]
[1772126560426,10.63961129,1989.5,1988.5,0.55091121]
[1772126562528,10.353,1989.5,1988.5,0.55091121]
[1772126562727,0.28835907,1989.9,1988.5,0.55091121]
[1772126564023,0.27858243,1988.6,1987.4,0.54498746]
[1772126564229,10.63158243,1988.5,1987.4,0.54498746]
[1772126564625,0.27858243,1988.2,1987.4,0.54498746]
[1772126564824,0.27858243,1988.2,1987.2,0.54498746]
[1772126565030,0.53009243,1987.9,1987.7,0.04858112]
[1772126565235,10.351,1987.8,1987.4,0.00402274]
[1772126565625,0.27858243,1987.7,1986.9,0.54498746]
[1772126566626,0.27858243,1987.7,1986.9,0.54917461]
[1772126567028,10.351,1987.8,1986.9,0.54917461]
[1772126568839,10.35416727,1988.2,1986.9,0.54917461]
[1772126569734,10.65502244,1988.2,1986.9,0.54917461]
[1772126570835,0.30123071,1988.1,1986.9,0.54917461]
[1772126571240,10.35416727,1988.2,1986.9,0.54917461]
[1772126571241,0.30123071,1987.9,1986.9,0.54917461]
[1772126572136,0.30327564,1987.5,1986.9,0.54917461]
[1772126572334,0.30327564,1987.5,1986.9,0.00418715]
[1772126572530,10.59555,1987.6,1986.0,21.65859205]
[1772126572531,0.55487564,1987.2,1986.5,0.54498746]
[1772126572729,10.344,1987.6,1986.1,0.54498746]
[1772126572730,0.30327564,1986.9,1986.1,0.54498746]
[1772126572933,0.25162,1987.0,1986.1,0.54498746]
[1772126572934,10.64627564,1986.8,1986.1,0.54498746]
[1772126573340,0.30327564,1986.7,1986.1,0.54498746]
[1772126573544,0.3068095,1986.7,1986.1,0.00430835]
[1772126574931,0.3068095,1986.7,1985.9,0.54498746]
[1772126575241,10.345,1986.6,1985.9,0.54498746]
[1772126576035,10.345,1986.6,1985.9,0.5486114]
[1772126576238,0.00353386,1986.7,1985.9,0.5486114]
[1772126576435,6.82956,1987.5,1985.9,0.5486114]
[1772126576639,0.54898974,1987.5,1985.9,0.5486114]
[1772126576840,0.29742974,1987.4,1985.9,0.5486114]
[1772126577439,0.30175645,1987.4,1985.9,0.5486114]
[1772126577640,0.29680877,1987.2,1985.9,0.5486114]
[1772126578344,0.00432671,1987.4,1985.9,0.5486114]